Cogmind - Beta 17.1 @@@ ROGUE MODE // 2026.08.26 @ 05:30:16 Player: Picayune Result: Destroyed by D6-J38(R) with Subdweller Machine Gun Performance ------------- Evolutions (0) 0 Regions Visited (3) 600 Robots Destroyed (28) 140 Value Destroyed (631) 631 Prototype IDs (14) 280 Alien Tech Used (0) 0 Bonus (0) 0 TOTAL SCORE: 1651 Bonus ------- None Cogmind --------- Core Integrity 0/250 Matter 295/300 Energy 125/125 System Corruption 0% Temperature Cool (0) Movement Walking (130) Location -10/Subcaves Parts ------- > --- POWER (1) -------- Light Ion Engine > --- PROPULSION (2) --- Cargo Legs > --- UTILITY (2) ------ Small Storage Unit Signal Interpreter > --- WEAPON (2) ------- Hammer > --- INVENTORY (8) ---- Light Ion Engine Spiked Treads Flight Unit Flight Unit Improved Heat Sink Light Assault Rifle Subdweller Machine Gun Light Cannon Peak State ------------ > --- POWER ------------ Light Ion Engine > --- PROPULSION ------- Cargo Legs > --- UTILITY ---------- Small Storage Unit Subdweller Optics Sensor Array Signal Interpreter > --- WEAPON ----------- Subdweller Machine Gun Hammer > --- INVENTORY -------- Light Ion Engine Light Treads Light Treads Flight Unit Flight Unit Improved Heat Sink Light Assault Rifle Light Cannon [Rating: 26] Favorites ----------- Power Light Ion Engine Engine Light Ion Engine Propulsion Aluminum Leg Treads Light Treads Leg Aluminum Leg Utility Small Storage Unit Device Improved Terrain Scanner Storage Small Storage Unit Processor Signal Interpreter Weapon Hammer Energy Gun EM Pulse Gun Ballistic Gun Light Assault Rifle Ballistic Cannon Light Cannon Impact Weapon Hammer Build | -11 -10 -10 -10 ------- Run | Yrd Mat Min Sub Slots Evolved . | . . . . Power . | . . . . Propulsion . | . . . . Utility . | . . . . Weapon . | . . . . Parts Attached 31 | 7 12 6 6 Power 6 | 1 3 1 1 Engine 6 | 1 3 1 1 Core . | . . . . Reactor . | . . . . Propulsion 8 | 2 3 2 1 Treads 2 | . . 2 . Leg 6 | 2 3 . 1 Wheel . | . . . . Hover . | . . . . Flight . | . . . . Utility 6 | 2 1 1 2 Device 3 | 1 . . 2 Storage 2 | 1 . 1 . Processor 1 | . 1 . . Hackware . | . . . . Protection . | . . . . Artifact . | . . . . Weapon 11 | 2 5 2 2 Energy Gun 4 | 1 2 . 1 Energy Cannon . | . . . . Ballistic Gun 5 | 1 2 1 1 Ballistic Cannon 1 | . . 1 . Launcher . | . . . . Special Weapon . | . . . . Impact Weapon 1 | . 1 . . Slashing Weapon . | . . . . Piercing Weapon . | . . . . Special Melee Weapon . | . . . . Unidentified Prototypes . | . . . . Parts Lost 6 | . 1 2 3 Power . | . . . . Propulsion 1 | . . 1 . Utility 2 | . . . 2 Weapon 3 | . 1 1 1 Highest Loss Streak 2 | . 1 2 2 To Critical Strikes . | . . . . Average Backups 7 | 4 7 7 7 Power . | . 1 1 1 Propulsion 2 | 2 2 1 2 Utility 2 | . 2 4 1 Weapon 1 | . 1 . 2 Tool/Special . | . . . . Unused Backups 9 | . 3 . 6 Power . | . . . . Propulsion 5 | . 2 . 3 Utility 3 | . . . 3 Weapon 1 | . 1 . . Tool/Special . | . . . . Average Slot Usage (%) 95 | . 99 99 88 Engine 13 | . 14 14 13 Treads 5 | . . 13 7 Leg 17 | . 28 14 9 Device 2 | . 3 . 3 Storage 13 | . 14 14 13 Processor 12 | . 10 14 13 Energy Gun 3 | . 5 . 2 Ballistic Gun 13 | . 15 13 11 Ballistic Cannon 2 | . . 5 3 Impact Weapon 8 | . 6 9 9 Peak Build Rating 26 | 9 9 8 26 Average Rating 12 | 5 7 7 19 On Entrance 6 | . 9 8 8 Avg Prop Armor Cover (%) . | . . . . Naked Turns . | . . . . Heaviest Build 17 | 15 15 13 17 Greatest Support 55 | 20 20 40 55 Greatest Overweight (x) 4 | . . 1 4 Average Overweight (x) . | . . . . Largest Inventory Capacity 8 | 8 8 8 8 Average Capacity 7 | 7 8 8 8 Most Carried 8 | 6 8 8 8 Average Carried 7 | 4 7 7 7 Final Capacity 8 | 8 8 8 8 Final Carried 8 | 6 8 8 8 Class Distribution -------------------- 79% | Mutant 12% | Scavenger-Mutant 7% | Assassin Dominant Class ---------------- Mutant | -10/Materials Mutant | -10/Mines Mutant | -10/Subcaves Resources | -11 -10 -10 -10 ----------- Run | Yrd Mat Min Sub Matter Collected 911 | 306 412 95 98 Remotely . | . . . . Salvage Created 833 | 97 550 91 95 Parts 52 | 9 29 10 4 Haulers Intercepted . | . . . . Recyclers Shooed . | . . . . Parts Field Recycled . | . . . . Retrieved Matter . | . . . . Parts Self-Destructed 3 | . . . 3 Prevented 1 | . . . 1 Parts Restored . | . . . . Kills | -11 -10 -10 -10 ------- Run | Yrd Mat Min Sub Combat Hostiles Destroyed 23 | . 17 4 2 Melee 4 | . 4 . . Guns 16 | . 12 2 2 Cannons 2 | . . 2 . Classes Destroyed 6 | 1 3 2 . Tunneler 4 | 4 . . . Recycler 1 | . . 1 . Watcher 1 | . 1 . . Swarmer 9 | . 6 3 . Grunt 13 | . 11 . 2 Assembled 1 | . . 1 . Best Kill Streak 4 | 1 4 4 2 Combat Bots Only 4 | . 4 3 2 Max Kills in Single Turn 1 | 1 1 1 1 Gunslinging . | . . . . Exploded . | . . . . Melee 1 | . 1 . . Uniques/NPCs Destroyed . | . . . . Combat | -11 -10 -10 -10 -------- Run | Yrd Mat Min Sub Hostile Shots Fired 149 | . 100 26 23 Missed 43 | . 23 9 11 Hits 106 | . 77 17 12 Melee 2 | . . 2 . Projectile 104 | . 77 15 12 Critical Strikes 2 | . . . 2 Damage Taken 1348 | . 796 182 370 Core 263 | . 108 55 100 Absorbed by Shields . | . . . . Core Remaining (%) 100 | 100 . . . Volleys Fired 103 | 12 67 20 4 Largest 2 | 2 2 2 2 Hottest 80 | 60 60 50 80 Shots Fired 160 | 14 116 22 8 Gun 154 | 14 116 16 8 Cannon 6 | . . 6 . Launcher . | . . . . Special . | . . . . Kinetic 122 | 12 84 22 4 Thermal 29 | . 29 . . Explosive . | . . . . Electromagnetic 9 | 2 3 . 4 Robot Hit Streak 15 | 5 15 3 9 Robot Miss Streak 6 | 2 5 6 1 Penetration Max . | . . . . Secondary Targets 2 | . 1 . 1 Max Gunslinging Chain 1 | . 1 . 1 Shots Hit Robots 108 | 9 78 12 9 Core Hits 42 | 4 25 8 5 Critical Kills 1 | . 1 . . Critical Parts Destroyed 3 | . 2 . 1 Critical Strikes 4 | . 3 . 1 Smash 4 | . 3 . 1 Melee Attacks 44 | . 14 11 19 Impact 44 | . 14 11 19 Slashing . | . . . . Piercing . | . . . . Sneak Attacks . | . . . . Combat Hostiles . | . . . . Follow-up Attacks . | . . . . Damage Inflicted 1469 | 113 1040 135 181 Guns 1163 | 113 851 52 147 Cannons 83 | . . 83 . Explosions . | . . . . Melee 222 | . 188 . 34 Ramming 1 | . 1 . . Kinetic 980 | 98 657 135 90 Thermal 194 | . 194 . . Explosive . | . . . . Electromagnetic 72 | 15 . . 57 Impact 222 | . 188 . 34 Slashing . | . . . . Piercing . | . . . . Highest Corruption . | . . . . Average Corruption . | . . . . Corruption Purged . | . . . . Corruption Blocked . | . . . . Overload Shots . | . . . . Overflow Damage 85 | . 68 . 17 Projectiles . | . . . . Explosions . | . . . . Melee 85 | . 68 . 17 Knockbacks 1 | . . 1 . Impact . | . . . . Kinetic 1 | . . 1 . Secondary . | . . . . Self-Inflicted Damage . | . . . . Shots . | . . . . Rammed . | . . . . Targets Rammed 2 | . 2 . . Kicked 2 | . 2 . . Crushed . | . . . . Highest Temperature 65 | . 65 10 . Average Temperature 22 | . 22 7 . Received Heat Transfer 342 | . 312 . 30 Siege Activations . | . . . . Martial Activations . | . . . . Shielding Activations . | . . . . Robots Disrupted . | . . . . Combat Hostiles . | . . . . Robots Corrupted 1 | . 1 . . Combat Hostiles 1 | . 1 . . Parts Fried 3 | . 3 . . Impact Corruptions 4 | . 3 . 1 Robots Melted . | . . . . Combat Hostiles . | . . . . Parts Melted . | . . . . Heat Transferred 450 | . 450 . . Parts Sabotaged . | . . . . Parts Stolen . | . . . . Parts Stripped . | . . . . Power Chain Reactions . | . . . . Alert | -11 -10 -10 -10 ------- Run | Yrd Mat Min Sub Maximum Alert Level 1 | . 1 . . Low Security (%) 96 | 100 94 100 . Level 1 3 | . 5 . . Level 2 . | . . . . Level 3 . | . . . . Level 4 . | . . . . Level 5 . | . . . . High Security . | . . . . Max Security . | . . . . Peak Influence 243 | 5 243 45 . Initial 6 | . . 6 . Average 45 | . 74 4 . Influence Increases 635 | 20 490 75 50 Destroy 0b10 Robot/C 440 | . 340 60 40 Destroy 0b10 Robot/NC 30 | 20 5 5 . Destroy Leader 82 | . 62 10 10 Successful Hack 20 | . 20 . . Disable Machine 15 | . 15 . . Destroy Structure 3 | . 3 . . Lose Combat Pursuer 45 | . 45 . . Influence Decreases 635 | 20 473 92 50 Entered New Map 11 | . . 11 . Time Decay 444 | 20 313 61 50 Lost Part 30 | . 10 20 . Purge Threat 150 | . 150 . . Squads Dispatched 2 | . 2 . . Investigation 2 | . 2 . . Extermination . | . . . . Reinforcement . | . . . . Assault . | . . . . Garrison . | . . . . Intercept . | . . . . Searches Triggered . | . . . . Construction Impeded . | . . . . Haulers Reinforced . | . . . . Active Scanning Responses . | . . . . Cargo Convoy Interrupts . | . . . . Stealth | -11 -10 -10 -10 --------- Run | Yrd Mat Min Sub Distress Signals 2 | . 2 . . Communications Jammed . | . . . . Distress Signals . | . . . . Times Spotted 38 | . 29 4 5 Peak Tracking Total 5 | . 5 3 2 Tactical Retreats 3 | . 2 . 1 Traps | -11 -10 -10 -10 ------- Run | Yrd Mat Min Sub Traps Triggered 4 | . 1 . 3 Indirectly . | . . . . Trap Hack Attempts . | . . . . Triggered . | . . . . Disarmed . | . . . . Reprogrammed . | . . . . Reused . | . . . . Traps Extracted . | . . . . Installed . | . . . . Triggered . | . . . . Machines | -11 -10 -10 -10 ---------- Run | Yrd Mat Min Sub Machines Disabled 2 | . 1 . 1 Max in Single Turn 1 | . 1 . 1 Machines Repaired . | . . . . Machines Dismantled . | . . . . Machines Sabotaged . | . . . . Overloaded Fab Kills . | . . . . Hacking | -11 -10 -10 -10 --------- Run | Yrd Mat Min Sub Machines Accessed 9 | . 8 . 1 Terminals 6 | . 6 . . Fabricators . | . . . . Repair Stations . | . . . . Recycling Units 2 | . 2 . . Scanalyzers . | . . . . Garrison Access . | . . . . Total Hacks 39 | . 30 . 9 Successful 24 | . 15 . 9 Failed 15 | . 15 . . Catastrophic 1 | . 1 . . Database Lockouts . | . . . . Manual 28 | . 27 . 1 Terminals 25 | . 25 . . Fabricators . | . . . . Repair Stations . | . . . . Recycling Units 5 | . 5 . . Scanalyzers . | . . . . Garrison Access . | . . . . Terminal Hacks 13 | . 4 . 9 Record 8 | . . . 8 Terminal Index 1 | . 1 . . Fabricator Index 1 | . 1 . . Alert Level 1 | . 1 . . Unreport Threat 1 | . 1 . . Proto ID Catalog 1 | . . . 1 Fabricator Hacks . | . . . . Repair Station Hacks . | . . . . Recycling Unit Hacks 2 | . 2 . . Report Inventory 1 | . 1 . . Retrieve Components 1 | . 1 . . Scanalyzer . | . . . . Garrison Access Hacks . | . . . . Unauthorized Hacks 9 | . 9 . . Terminals 9 | . 9 . . Track 2 | . 2 . . Assimilate 1 | . 1 . . Botnet 5 | . 5 . . Operators 1 | . 1 . . Fabricators . | . . . . Repair Stations . | . . . . Recycling Units . | . . . . Scanalyzers . | . . . . Garrison Access . | . . . . Data Cores Recovered . | . . . . Used . | . . . . Hacking Detections 7 | . 7 . . Full Trace Events 1 | . 1 . . Feedback Events . | . . . . Feedback Blocked . | . . . . Robot Schematics Acquired . | . . . . Robots Built . | . . . . Authchips . | . . . . Time . | . . . . Total Robot Build Rating . | . . . . Part Schematics Acquired . | . . . . Parts Built . | . . . . Authchips . | . . . . Time . | . . . . Total Part Build Rating . | . . . . Part Studies Acquired . | . . . . Parts Repaired . | . . . . Time . | . . . . Parts Recycled . | . . . . Recycled Matter . | . . . . Retrieved Matter . | . . . . Retrieved Components 10 | . 10 . . Parts Scanalyzed . | . . . . Part Schematics Acquired . | . . . . Parts Damaged . | . . . . Bothacking | -11 -10 -10 -10 ------------ Run | Yrd Mat Min Sub Used RIF Installer . | . . . . Robots Hacked . | . . . . Non-combat . | . . . . Combat . | . . . . Robot Hacks Applied . | . . . . Relay Couplers Released . | . . . . Fabnet Peak Effective % . | . . . . Robots Rewired . | . . . . Allies Hacked . | . . . . Hacks Repelled . | . . . . Allies | -11 -10 -10 -10 -------- Run | Yrd Mat Min Sub Total Allies . | . . . . Largest Group . | . . . . Highest-Rated Group . | . . . . Highest-Rated Ally . | . . . . Total Orders . | . . . . Ally Attacks . | . . . . Total Damage . | . . . . Kills . | . . . . Allies Corrupted . | . . . . Allies Melted . | . . . . Intel | -11 -10 -10 -10 ------- Run | Yrd Mat Min Sub Active Infowar (turns) 439 | 8 230 . 201 Optics 201 | . . . 201 Sensors 192 | . . . 192 Terrain 238 | 8 230 . . Robot Analysis Total . | . . . . Derelict Logs Recovered 4 | . . 2 2 Drone Launches . | . . . . Drone Recoveries . | . . . . Exploration | -11 -10 -10 -10 ------------- Run | Yrd Mat Min Sub Turns Passed 2878 | 178 1036 542 1122 Spaces Moved 1584 | 113 585 322 564 Core 8 | 7 . . 1 Treads 310 | . . 143 167 Legs 1266 | 106 585 179 396 Wheels . | . . . . Hover . | . . . . Flight . | . . . . Fastest Speed 50 | 50 120 120 130 Average Speed 130 | 115 120 139 139 Slowest Speed 250 | 120 120 190 250 Overloaded Moves . | . . . . Propulsion Burnouts . | . . . . Robots Hopped . | . . . . Potential Cave-ins . | . . . . Cave-ins Triggered . | . . . . Exploration Rate (%) 48 | 5 82 69 36 Regions Visited 3 Branch Regions 2 Pre-discovered Areas . | . . . . Known Exits Taken 2 | . 1 1 . Unknown Exits Taken 1 | 1 . . . Scrap Searched 4 | . . 1 3 Spaces Dug 5 | . 3 . 2 Terrain Destroyed 5 | . 3 . 2 Melee 5 | . 3 . 2 Projectile . | . . . . AOE . | . . . . Terrain Rammed . | . . . . Walls Destroyed . | . . . . Machines Disabled . | . . . . Actions | -11 -10 -10 -10 --------- Run | Yrd Mat Min Sub Total 2160 | 143 783 377 857 Wait 340 | 6 75 10 249 Move 1581 | 112 584 321 564 Hop . | . . . . Pick Up 23 | 6 7 4 6 Fast Attach 8 | 7 . . 1 Attach 6 | . 2 2 2 Detach 1 | . 1 . . Swap 29 | . 18 5 6 Drop 23 | . 13 4 6 Fire 103 | 12 67 20 4 Melee 44 | . 14 11 19 Ram . | . . . . Kick 2 | . 2 . . Crush . | . . . . Escape Stasis . | . . . . Rewire . | . . . . Trap . | . . . . Miscellaneous . | . . . . Route ------- -11/Scrapyard -10/Materials (discovered 4 exits: *Mat x2 / *Min x2) -10/Mines (discovered 3 exits: *Mat / Exi / *Sub) -10/Subcaves History --------- Turn | Location | Event 37 | -11/Scrapyard | Discovered new exit (range 15) 179 | -11/Scrapyard | Entered Materials 306 | -10/Materials | Build established: Mutant 462 | -10/Materials | Discovered new exit (range 7) 469 | -10/Materials | Identified exit to Mines 537 | -10/Materials | Discovered new exit (range 15) 745 | -10/Materials | Discovered exit to Mines (range 13) 879 | -10/Materials | Derelicts attacked the area 979 | -10/Materials | Discovered new exit (range 16) 1013 | -10/Materials | Identified exit to Materials 1093 | -10/Materials | Build established: Scavenger-Mutant 1215 | -10/Materials | Entered Mines 1238 | -10/Mines | Learned Materials security intel 1298 | -10/Mines | Identified exit to Exiles 1426 | -10/Mines | Discovered exit to Materials (range 5) 1449 | -10/Mines | Core integrity fell below 50% 1477 | -10/Mines | Build established: Mutant 1540 | -10/Mines | Discovered new exit (range 15) 1557 | -10/Mines | Identified exit to Subcaves 1601 | -10/Mines | Found a hidden stash of uninstalled traps 1650 | -10/Mines | Excavation squad dispatched 1650 | -10/Mines | A large section of the Mines collapsed 1757 | -10/Mines | Entered Subcaves 1773 | -10/Subcaves | Learned location of 1 exit from Materials 1779 | -10/Subcaves | A swath of the cavern ceiling suddenly collapsed 1948 | -10/Subcaves | Visited 4L-MR0's lab 2041 | -10/Subcaves | Found Cargo Legs 2042 | -10/Subcaves | Attached Cargo Legs, gained temporary slots: Utility x2 2497 | -10/Subcaves | Learned 2 Materials zone layouts 2585 | -10/Subcaves | A swath of the cavern ceiling suddenly collapsed 2732 | -10/Subcaves | Core integrity fell below 20% 2879 | -10/Subcaves | Destroyed by D6-J38(R) with Subdweller Machine Gun Last Messages --------------- 02502_ BV-7GV(u) deconstructs Twisted Machinery. 02556_ BV-7GV(u) builds Twisted Machinery. A swath of the cavern ceiling suddenly collapses. 02631_ G-47 Trooper destroyed. 02631_ Switching to secondary target: G-34 Mercenary. 02635_ Corrupted Imp. Heat Sink self-destruct mechanism malfunctions. 02637_ G-34 Mercenary destroyed. 02640_ Acquired 18 matter. 02642_ Aluminum Leg fries itself beyond repair. 02643_ Corrupted Ion Engine fries itself beyond repair. 02822_ Riot Gun destroyed. 02872_ 0Y-H5P(R) suffers critical hit (Smash). 02872_ Destroyed Sub. Beam Cannon. 02872_ 0Y-H5P(R) system corrupted by crushing effect. Map ----- +----------------------------------------------------+ | ???????????????????##????# ???????###?## #? | | ???????????????????# ?###?# ????######### #? | | ???????????????????# ## #?# #?#### ##? | | ???????????????????# ##?# ### ##?? | | ????????????????????# ### ##??? | | ???????????????????## #???? | | ???????????##?????## ## #???? | | ??????????## ###?# ##### #???? | | ??????????# ## ##??# #???? | | ???????????# ######???#### #???? | | ????????????## ##???????????## #???? | | ?????????????#### #?????????????## " #??? | | ????????????????#### #??????????????## " #?? | | ??????????????????## #???????????????##""##" ?? | | ?????????????????## ##???????????????#"""??? ?? | | ????????????????## #????????????????????????? | | ??????????????### ####????????????????????????? | | ????????####### ###???????????????????????????? | | ???????## #?????????????????????????????? | | ???????# ##?????????????????????????????? | | ?????### ##??????????????????????????????? | | ? #########???????????????????????? | | ? ## ## ##"##?????????????????????? | | ?? ??# ## #?????????????????????? | | ?? ???# R #?????????????????????? | | ??? ????## @ #?????????????????????? | | ????? ??????### R #?????????????????????? | | ??????#?????????## ###?????????????????????? | | ?????????????????# #####???????????????????????? | | ?????????????????#####???????????????????????????? | | ?????????????????????????????????????????????????? | | ?????????????????????????????????????????????????? | | ?????????????????????????????????????????????????? | | ?????????????????????????????????????????????????? | | ?????????????????????????????????????????????????? | | ?????????????????????????????????????????????????? | | ?????????????????????????????????????????????????? | | ?????????????????????????????????????????????????? | | ?????????????????????????????????????????????????? | | ?????????????????????????????????????????????????? | | ?????????????????????????????????????????????????? | | ?????????????????????????????????????????????????? | | ?????????????????????????????????????????????????? | | ?????????????????????????????????????????????????? | | | | | | | | | | | | | +----------------------------------------------------+ Best States ------------- Heat Dissipation 25 Energy Generation 10 Energy Capacity 250 Matter Stores 300 Matter Capacity 300 Sight Range 21 Robot Scan Range 14 Terrain Scan Range 16 Terrain Scan Density 10 Evasion (%) 55 Recoil Reduction 2 Item Schematics ----------------- None Robot Schematics ------------------ None Fabricated ------------ Nothing Repaired ---------- Nothing Studied --------- None Alien Tech Used ----------------- None Achievements -------------- Mistaken Identity Challenges ------------ None Game ------ Seed GravityOmegaStick Manual? 0 Play Time 00:38:17 Cumulative 72.5 hours Start 2026.08.26 @ 01:42:41 End 2026.08.26 @ 05:30:16 Sessions 3 Manual Loads 0 Difficulty Rogue Special Mode None Game No. 63 Rogue 63 Adventurer 0 Explorer 0 Win Type - Total 0 Types 0/0/0/0/0/0/0/0/0/0 Lore% 31 Gallery% 39 Achievement% 23 Wizard Run 0 Options --------- Layout 1 ASCII 0 Keyboard 1 Movement Numpad Keybinds 0 Fullscreen 1 Font 32/SmallcapsGlow Map View 50x35 Zoom Use 0% Tactical HUD 1 Map Filters NONE Filters NONE Steam 1 RUN: d432983d-6c30-4d6e-8809-4feb3c6fd52f